bitfinex/quotes_SOLUSD_20240808
["timestamp","ask_amount","ask_price","bid_price","bid_amount"]
[1723126756994,15.9033,157.05,156.98,5.5e-05]
[1723126757313,6.3698,156.99,156.98,5.5e-05]
[1723126757513,51.7098,156.99,156.98,5.5e-05]
[1723126759010,51.7098,156.99,156.83,0.8566624]
[1723126759011,15.9269,156.97,156.83,0.8566624]
[1723126759312,15.9333,156.91,156.83,0.8566624]
[1723126759509,6.3755,156.85,156.83,0.8566624]
[1723126759717,6.3751,156.86,156.83,0.8566624]
[1723126759890,6.3747,156.87,156.83,0.8566624]
[1723126760287,0.17,156.88,156.83,0.8566624]
[1723126760288,6.3759,156.84,156.83,0.8566624]
[1723126760912,51.7159,156.84,156.83,0.6766624]
[1723126761112,95.1259,156.84,156.83,0.6766624]
[1723126761483,115.1259,156.84,156.83,6.24e-05]
[1723126761899,51.7159,156.84,156.83,6.24e-05]
[1723126762595,45.34,156.84,156.71,6.6312]
[1723126762789,6.377,156.82,156.71,6.6312]
[1723126763206,6.3774,156.81,156.71,6.6312]
[1723126763611,45.17,156.83,156.71,6.6312]
[1723126763807,0.17,156.82,156.71,6.6312]
[1723126764002,36.3698,156.99,156.81,20.0]
[1723126764312,6.65118401,157.08,156.89,43.41]
[1723126764497,6.3656,157.1,156.9,86.44333014]
[1723126764694,6.3647,157.12,156.92,20.0]
[1723126764895,6.367,157.06,156.93,21.27349381]
[1723126765102,15.9109,157.13,156.93,20.0]
[1723126765413,15.9109,157.13,156.93,21.24073197]
[1723126765615,15.9139,157.1,156.91,6.5449]
[1723126765791,43.41,157.11,156.91,6.5449]
[1723126765792,59.3268,157.07,156.91,7.81916233]
[1723126766102,6.3682,157.03,156.91,6.5449]
[1723126766428,15.9195,157.04,156.85,6.3723]
[1723126766588,15.9195,157.04,156.86,1.27446956]
[1723126766791,15.9195,157.04,156.86,46.27446956]
[1723126766993,6.3694,157.0,156.86,1.27446956]
[1723126767216,6.3694,157.0,156.86,21.27446956]
[1723126767518,6.3694,157.0,156.86,21.27446471]
[1723126767519,6.3698,157.0,156.86,21.27446471]
[1723126768018,43.41,157.11,156.88,20.0]
[1723126768234,43.41,157.11,156.89,66.2739547]
[1723126768513,6.3665,157.07,156.9,1.6138735]
[1723126768718,15.9148,157.09,156.9,1.2738735]
[1723126768916,31.8284,157.1,156.89,20.0]
[1723126769217,31.8284,157.1,156.86,1.27421252]
[1723126769218,15.9174,157.06,156.86,20.0]
[1723126769525,15.9142,157.1,156.9,20.0]
[1723126769725,2.56760814,157.11,156.91,1.44387746]
[1723126769917,6.3657,157.09,156.91,1.44387746]
[1723126770093,6.3657,157.09,156.92,20.0]
[1723126770289,6.3657,157.09,156.93,21.4436508]
[1723126770513,24.51409098,157.15,156.94,0.17]
[1723126770514,15.9123,157.12,156.94,0.17]
[1723126770720,15.9123,157.12,156.93,21.2736508]
[1723126770721,6.3683,157.03,156.9,21.27390034]
[1723126770890,15.9144,157.09,156.91,45.0]
[1723126770891,6.3674,157.05,156.91,45.0]
[1723126771096,15.9144,157.09,156.92,20.0]
[1723126771315,15.9144,157.09,156.9,1.27390389]
[1723126771522,45.34,157.08,156.9,1.27390389]
[1723126771889,6.3682,157.03,156.9,1.27390389]
[1723126772088,6.3682,157.03,156.89,20.17]
[1723126772089,45.34,157.08,156.89,21.27403587]
[1723126772313,43.41,157.07,156.86,21.443985]
[1723126772627,6.3701,156.99,156.87,1.27424112]
[1723126772833,6.3702,156.98,156.85,6.3723]
[1723126773042,15.9187,157.05,156.86,1.27449255]
[1723126773233,45.17,157.04,156.85,26.3723]
[1723126773416,0.17,157.03,156.86,1.27431168]
[1723126773613,20.34,157.06,156.87,20.0]
[1723126773614,36.0882,157.06,156.87,20.0]
[1723126773828,6.3685,157.03,156.88,21.27414885]
[1723126774113,6.3686,157.02,156.88,1.27414885]
[1723126774346,31.8342,157.07,156.86,20.0]
[1723126774515,43.41,157.03,156.85,6.3723]
[1723126774705,15.9233,157.01,156.85,6.3723]
[1723126774930,6.3707,156.97,156.85,6.3723]
[1723126775234,15.9252,156.99,156.85,6.3723]
[1723126775404,6.3715,156.95,156.85,6.3723]
[1723126775608,59.3306,157.03,156.85,6.3723]
[1723126775837,6.3702,156.98,156.85,6.3723]
[1723126776206,6.3718,156.94,156.85,6.3723]
[1723126776468,6.3715,156.95,156.85,6.3723]
[1723126776614,0.17,156.94,156.85,6.3723]
[1723126776806,43.41,156.99,156.85,6.3723]
[1723126777133,97.1957,157.03,156.85,6.3723]
[1723126777134,0.34,156.98,156.85,6.3723]
[1723126777335,0.17,157.0,156.86,1.27477982]
[1723126777542,6.3719,156.94,156.85,6.3723]
[1723126778044,61.0951,156.99,156.85,6.3723]
[1723126778247,6.3722,156.94,156.85,6.3723]
[1723126778423,61.0951,156.99,156.85,6.3723]
[1723126778742,6.3692,157.01,156.86,21.27476087]
[1723126778930,43.41,157.07,156.86,41.27476087]
[1723126779238,15.6602,157.09,156.86,21.27476087]
[1723126779451,15.6602,157.09,156.88,20.0]
[1723126779736,15.6602,157.09,156.86,20.0]
[1723126779940,6.3713,156.96,156.86,20.0]
[1723126780111,6.3714,156.95,156.85,6.3723]
[1723126780324,6.3711,156.96,156.85,6.3723]
[1723126780528,6.3705,156.98,156.85,6.3723]
[1723126780728,43.41,157.04,156.86,45.0]
[1723126781252,43.41,157.04,156.87,0.17]
[1723126781253,6.3693,157.01,156.87,0.17]
[1723126781848,6.3678,157.04,156.88,1.27430609]
[1723126782161,6.369,157.01,156.89,0.17]
[1723126782336,6.369,157.01,156.88,45.0]
[1723126782541,6.3686,157.02,156.89,20.0]
[1723126782739,34.20954639,157.09,156.9,45.0]
[1723126782967,6.3679,157.04,156.9,46.27404334]
[1723126783133,6.3682,157.03,156.9,45.0]
[1723126783332,6.3687,157.02,156.9,45.0]
[1723126783749,15.9171,157.07,156.9,46.27417318]
[1723126784155,15.9171,157.07,156.9,45.0]
[1723126784156,0.17,157.06,156.9,45.0]
[1723126784660,6.3691,157.01,156.89,20.0]
[1723126784836,6.3682,157.03,156.87,21.27417285]
[1723126785040,6.3687,157.02,156.88,20.0]
[1723126785351,6.3687,157.02,156.89,1.27412847]
[1723126785561,6.3691,157.01,156.88,21.27415076]
[1723126785859,6.3683,157.03,156.89,45.17]
[1723126786038,16.0883,157.06,156.88,21.27406689]
[1723126786239,16.0883,157.06,156.85,26.3723]
[1723126786240,6.3709,156.97,156.85,6.3723]
[1723126786868,43.41,157.04,156.85,6.3723]
[1723126787164,77.1821,157.03,156.85,6.3723]
[1723126787356,6.3707,156.97,156.85,6.3723]
[1723126787538,6.3707,156.97,156.86,1.2747104]
[1723126787741,15.923,157.01,156.85,6.3723]
[1723126787948,45.34,157.0,156.85,6.3723]
[1723126788166,6.3712,156.96,156.85,6.3723]
[1723126788359,2.52753266,157.03,156.85,7.64695181]
[1723126788535,76.8412,157.03,156.85,6.3723]
[1723126788863,76.8412,157.03,156.85,7.64587492]
[1723126788864,6.3707,156.97,156.85,7.64587492]
[1723126789086,6.3711,156.96,156.85,6.3723]
[1723126789235,15.9262,156.98,156.85,6.3723]
[1723126789437,6.3731,156.91,156.85,6.3723]
[1723126789633,6.3747,156.88,156.85,6.3723]
[1723126790058,6.3739,156.89,156.85,6.3723]
[1723126791504,31.8574,156.95,156.78,6.63816489]
[1723126791505,6.3764,156.83,156.78,6.63816489]
[1723126791640,6.3777,156.8,156.73,6.1009]
[1723126791968,6.376,156.84,156.73,6.1009]
[1723126792268,43.41,156.86,156.73,6.1009]
[1723126792569,6.378,156.79,156.73,6.1009]
[1723126792776,45.34,156.85,156.73,6.1009]
[1723126792777,6.3775,156.8,156.73,6.1009]
[1723126793078,6.378,156.79,156.73,6.1009]
[1723126793448,45.34,156.85,156.73,6.1009]
[1723126793768,8.7456772,156.9,156.74,1.27583335]
[1723126794084,15.932,156.92,156.73,6.1009]
[1723126794085,43.41,156.92,156.73,6.1009]
[1723126794252,6.3756,156.85,156.73,6.1009]
[1723126794448,43.41,156.89,156.73,6.1009]
[1723126794778,6.3758,156.85,156.73,6.1009]
[1723126794944,6.3764,156.83,156.73,6.1009]
[1723126795142,50.04849123,156.89,156.73,6.1009]
[1723126795357,6.3735,156.9,156.74,1.2755499]
[1723126795558,6.3747,156.87,156.73,7.37623403]
[1723126795980,6.63664656,156.93,156.73,7.37623403]
[1723126795981,6.3755,156.85,156.73,6.1009]
[1723126796182,6.3759,156.84,156.73,6.1009]
[1723126796388,6.3756,156.85,156.73,6.1009]
[1723126796884,6.3748,156.87,156.73,6.1009]
[1723126797060,6.3743,156.88,156.74,45.0]
[1723126797266,6.63664656,156.93,156.74,45.0]
[1723126797569,6.3747,156.87,156.74,45.0]
[1723126797771,6.3735,156.9,156.75,1.27543768]
[1723126797980,43.41,156.96,156.76,20.0]
[1723126798187,43.41,156.96,156.77,21.27501337]
[1723126798367,43.41,156.96,156.77,66.27501337]
[1723126798565,43.41,156.96,156.77,20.0]
[1723126798888,43.41,156.96,156.78,45.0]
[1723126798889,6.3735,156.9,156.78,45.0]
[1723126799187,43.41,156.96,156.79,20.0]
[1723126799488,43.41,156.96,156.77,1.27513295]
[1723126799489,6.3731,156.91,156.77,1.27513295]
[1723126799681,15.9306,156.94,156.75,0.17]
[1723126799885,6.3738,156.9,156.75,66.61517933]
[1723126800260,6.3716,156.95,156.76,22.8544]
[1723126800464,43.41,156.96,156.77,65.0]
[1723126800684,43.41,156.96,156.77,20.0]
[1723126800685,6.3742,156.89,156.77,20.0]
[1723126800887,6.3731,156.91,156.78,45.0]
[1723126801098,6.3731,156.91,156.77,21.2752035]
[1723126801099,6.3727,156.92,156.79,1.27514537]
[1723126801267,59.3377,156.96,156.77,21.27503155]
[1723126801461,6.3742,156.89,156.76,22.8544]
[1723126801667,15.9306,156.93,156.76,22.8544]
[1723126801886,50.04396457,156.96,156.78,20.0]
[1723126802191,43.41,157.0,156.79,21.27454452]
[1723126802366,6.3719,156.94,156.8,1.27480744]
[1723126802567,6.3704,156.98,156.8,1.27480744]
[1723126802767,15.4073772,157.02,156.82,6.5053]
[1723126802991,15.9235,157.0,156.82,6.5053]
[1723126803182,6.3735,156.9,156.82,6.5053]
[1723126803376,43.41,156.96,156.82,6.5053]
[1723126803576,15.9315,156.93,156.82,6.5053]
[1723126803869,59.3377,156.96,156.82,6.5053]
[1723126804177,43.41,156.92,156.82,6.5053]
[1723126804375,0.34,156.91,156.77,6.0563]
[1723126804584,8.7456772,156.95,156.77,7.33154691]
[1723126804786,43.41,156.96,156.77,7.33154691]
[1723126804989,0.17,156.95,156.77,6.0563]
[1723126805178,9.99117569,156.92,156.77,6.0563]
[1723126805380,15.938,156.86,156.72,6.2423]
[1723126805693,6.3772,156.81,156.72,6.2423]
[1723126805877,6.3771,156.81,156.72,6.2423]
[1723126806192,0.17,156.85,156.72,6.2423]
[1723126806403,6.3771,156.82,156.72,6.2423]
[1723126806696,6.3772,156.81,156.72,6.2423]
[1723126807002,43.41,156.84,156.72,6.2423]
[1723126807291,6.3776,156.8,156.72,6.2423]
[1723126807475,0.17,156.81,156.72,6.2423]
[1723126807679,6.3788,156.77,156.72,6.2423]
[1723126807880,61.2815,156.83,156.72,6.2423]
[1723126808485,15.944,156.8,156.72,6.2423]
[1723126808683,59.354,156.8,156.67,7.2211624]
[1723126808888,45.34,156.79,156.67,7.2211624]
[1723126809216,6.3795,156.75,156.67,7.2211624]
[1723126809502,45.34,156.79,156.67,7.2211624]
[1723126809503,6.38,156.74,156.67,7.2211624]
[1723126809679,45.34,156.79,156.67,7.2211624]
[1723126810082,6.3794,156.76,156.67,6.7211624]
[1723126810272,45.34,156.79,156.67,6.7211624]
[1723126810679,0.34,156.79,156.67,6.7211624]
[1723126810892,15.9468,156.78,156.67,6.7211624]
[1723126811093,0.34,156.77,156.67,6.7211624]
[1723126811398,43.41,156.8,156.67,6.7211624]
[1723126811594,6.3792,156.76,156.67,6.7211624]
[1723126811899,0.17,156.79,156.67,6.7211624]
[1723126812195,15.9465,156.78,156.67,6.7211624]
[1723126812397,45.17,156.77,156.67,6.7211624]
[1723126812706,6.3815,156.71,156.67,6.7211624]
[1723126812874,43.41,156.76,156.67,0.3566624]
[1723126813080,6.3817,156.7,156.67,0.3566624]
[1723126813281,15.9528,156.72,156.67,0.3566624]
[1723126813506,6.3824,156.68,156.67,0.3566624]
[1723126813706,6.7224,156.68,156.67,0.3566624]
[1723126813889,51.7224,156.68,156.67,0.3566624]
[1723126814209,51.7224,156.68,156.64,6.0]
[1723126814210,6.3836,156.65,156.64,6.0]
[1723126814408,6.3836,156.65,156.51,0.8566624]
[1723126814409,6.3877,156.55,156.51,0.8566624]
[1723126814705,15.9652,156.6,156.51,0.8566624]
[1723126814885,6.3881,156.55,156.51,0.8566624]
[1723126815085,15.9652,156.6,156.51,0.8566624]
[1723126815086,6.3885,156.53,156.51,0.8566624]
[1723126815409,6.5589,156.52,156.51,0.8566624]
[1723126816218,43.41,156.55,156.51,0.8566624]
[1723126816505,6.3889,156.53,156.51,0.8566624]
[1723126816904,6.3889,156.52,156.51,0.8566624]
[1723126817082,6.5589,156.52,156.51,0.8566624]
[1723126817409,0.17,156.52,156.51,0.8566624]
[1723126817608,0.17,156.54,156.51,0.8566624]
[1723126817785,6.3889,156.52,156.51,0.8566624]
[1723126817987,6.7289,156.52,156.51,0.8566624]
[1723126818311,51.7289,156.52,156.51,0.8566624]
[1723126818888,75.3415,156.59,156.51,0.8566624]
[1723126818889,43.41,156.59,156.51,0.8566624]
[1723126819092,6.3882,156.54,156.51,0.8566624]
[1723126819293,0.17,156.53,156.51,0.8566624]
[1723126819495,6.3889,156.52,156.51,0.8566624]
[1723126819694,6.5589,156.52,156.51,0.8566624]
[1723126819901,0.17,156.52,156.51,0.8566624]
[1723126820317,6.7289,156.52,156.51,0.8566624]
[1723126820492,51.7289,156.52,156.51,0.8566624]
[1723126821005,51.7289,156.52,156.37,6.3969]
[1723126821006,6.391,156.47,156.37,6.3969]
[1723126821194,6.7314,156.46,156.37,6.3969]
[1723126821401,43.41,156.5,156.37,6.3969]
[1723126821716,15.9659,156.59,156.37,6.3969]
[1723126821885,6.3869,156.57,156.37,6.3969]
[1723126822310,6.3864,156.59,156.37,6.3969]
[1723126822516,6.3853,156.61,156.42,43.41]
[1723126822698,6.388,156.55,156.43,20.0]
[1723126822901,15.9649,156.6,156.41,21.4499]
[1723126823230,15.9671,156.58,156.41,21.4499]
[1723126823395,6.3882,156.54,156.41,21.4499]
[1723126823717,6.3874,156.56,156.41,21.4499]
[1723126824097,0.17,156.55,156.41,21.4499]
[1723126824496,43.41,156.64,156.42,45.0]
[1723126824696,6.64267095,156.62,156.42,45.0]
[1723126824901,6.3861,156.59,156.42,45.0]
[1723126825204,6.3857,156.6,156.43,21.27801041]
[1723126825401,6.3866,156.58,156.43,20.0]
[1723126825601,15.9638,156.61,156.42,45.0]
[1723126825807,15.9638,156.61,156.41,21.4499]
[1723126826123,15.966,156.59,156.41,21.4499]
[1723126826516,45.34,156.58,156.41,21.4499]
[1723126826820,6.386,156.6,156.42,1.44809511]
[1723126827199,6.64267095,156.62,156.41,21.4499]
[1723126827400,6.3872,156.57,156.42,1.44794425]
[1723126827595,8.69377236,156.62,156.41,21.4499]
[1723126827813,6.3885,156.53,156.41,21.4499]
[1723126828195,43.41,156.57,156.41,21.4499]
[1723126828420,6.3884,156.54,156.41,21.4499]
[1723126828620,6.3862,156.59,156.41,23.53101781]
[1723126828795,37.44483111,156.67,156.41,23.53101781]
[1723126828796,5.52973111,156.67,156.43,20.0]
[1723126828997,43.41,156.69,156.44,21.27765011]
[1723126829218,6.3844,156.63,156.44,21.27765011]
[1723126829413,44.83042815,156.68,156.45,0.17]
[1723126829716,30.889766,156.68,156.44,20.0]
[1723126829922,30.889766,156.68,156.45,46.35072253]
[1723126830119,30.889766,156.68,156.46,21.27763976]
[1723126830314,8.654266,156.68,156.49,16.3248]
[1723126830522,59.3619,156.73,156.5,66.61729477]
[1723126830700,6.3833,156.66,156.5,65.17]
[1723126831102,6.384,156.65,156.5,65.17]
[1723126831317,6.3849,156.62,156.5,20.0]
[1723126831547,43.41,156.69,156.49,16.3248]
[1723126831697,43.41,156.64,156.49,16.3248]
[1723126832309,0.17,156.63,156.49,16.3248]
[1723126832619,45.34,156.63,156.49,16.3248]
[1723126832833,6.3873,156.56,156.48,6.3608]
[1723126833030,45.34,156.63,156.48,6.3608]
[1723126833031,0.17,156.55,156.48,6.3608]
[1723126833332,6.3888,156.53,156.43,22.2068]
[1723126833539,0.34,156.55,156.43,22.2068]
[1723126833540,6.3894,156.51,156.43,22.2068]
[1723126833729,6.5599,156.5,156.43,6.3379]
[1723126833916,36.3902,156.49,156.43,6.3379]
[1723126834116,36.3902,156.49,156.35,0.8566624]
[1723126834117,62.78,156.48,156.35,0.8566624]
[1723126834429,6.3914,156.46,156.35,0.8566624]
[1723126834615,88.75,156.48,156.35,0.8566624]
[1723126834949,45.34,156.48,156.35,0.8566624]
[1723126835235,30.0,156.45,156.36,1.2787969]
[1723126835435,2.10367435,156.54,156.35,2.13526101]
[1723126835649,6.5586,156.53,156.35,0.8566624]
[1723126835931,22.2747,156.57,156.36,1.27853809]
[1723126836243,6.1833,156.63,156.38,65.6956]
[1723126836425,6.3878,156.55,156.39,65.0]
[1723126836627,6.3873,156.56,156.39,65.0]
[1723126836941,43.41,156.6,156.4,1.44831078]
[1723126836942,6.3869,156.57,156.4,1.44831078]
[1723126837319,15.964,156.61,156.39,65.0]
[1723126837320,6.3877,156.56,156.39,65.0]
[1723126837724,6.3868,156.58,156.39,66.27829209]
[1723126837939,76.90793419,156.64,156.41,6.4473]
[1723126838116,6.3861,156.59,156.42,45.17]
[1723126838314,6.3882,156.54,156.41,6.4473]
[1723126838725,6.3878,156.55,156.41,6.4473]
[1723126838924,15.965,156.6,156.41,6.4473]
[1723126839137,6.3877,156.55,156.41,6.4473]
[1723126839333,6.7282,156.54,156.41,6.4473]
[1723126839513,25.17476634,156.63,156.41,6.4473]
[1723126839841,6.3849,156.62,156.41,7.72533692]
[1723126840021,58.9247,156.64,156.41,6.4473]
[1723126840219,6.3879,156.55,156.42,20.0]
[1723126840429,15.9649,156.6,156.41,6.4473]
[1723126840827,115.28374354,156.64,156.41,6.4473]
[1723126841044,43.41,156.53,156.41,6.4473]
[1723126841350,43.41,156.49,156.35,7.1248624]
[1723126841514,45.17,156.48,156.35,7.1248624]
[1723126841718,6.3918,156.45,156.35,7.1248624]
[1723126841928,0.34,156.44,156.35,7.1248624]
[1723126842133,30.34,156.44,156.35,7.1248624]
[1723126843248,6.3934,156.41,156.35,7.1248624]
[1723126843438,0.17,156.4,156.35,0.8566624]
[1723126843946,30.17,156.4,156.35,0.8566624]
[1723126844123,30.0,156.4,156.35,0.8566624]
[1723126844327,0.34,156.39,156.35,0.8566624]
[1723126844528,30.0,156.4,156.35,0.8566624]
[1723126844731,30.0,156.4,156.35,0.7566624]
[1723126846449,49.8002,156.49,156.35,0.7566624]
[1723126846646,31.9316,156.59,156.36,24.03068759]
[1723126846858,42.6125,156.6,156.36,66.1617]
[1723126847029,43.41,156.51,156.36,6.2097]
[1723126847225,38.4653,156.48,156.35,0.7566624]
[1723126847424,6.3923,156.44,156.35,0.7566624]
[1723126847636,38.4653,156.48,156.35,0.7566624]
[1723126848220,45.34,156.47,156.35,0.7566624]
[1723126848930,22.5126,156.53,156.35,0.7566624]
[1723126849152,6.3902,156.49,156.35,0.7566624]
[1723126849349,6.3906,156.48,156.35,0.7566624]
[1723126849544,6.3919,156.45,156.35,0.7566624]
[1723126849734,6.3923,156.44,156.35,0.7566624]
[1723126849933,6.3919,156.45,156.35,0.7566624]
[1723126850241,45.0,156.44,156.35,0.7566624]
[1723126850453,0.17,156.43,156.35,0.7566624]
[1723126850756,0.17,156.44,156.35,0.7566624]
[1723126853029,6.62773411,156.5,156.35,0.7566624]
[1723126853251,6.3884,156.54,156.36,6.0363]
[1723126853467,6.171,156.59,156.38,16.1791]
[1723126853761,12.79854794,156.59,156.39,20.0]
[1723126854085,15.9667,156.58,156.39,20.0]
[1723126854229,15.9667,156.58,156.38,16.1791]
[1723126854230,83.92964794,156.59,156.38,16.1791]
[1723126854427,15.9711,156.54,156.37,2.0732516]
[1723126854626,6.391,156.47,156.36,6.0363]
[1723126854858,6.3914,156.46,156.36,6.0363]
[1723126855060,6.3911,156.47,156.36,6.0363]
[1723126855259,51.7314,156.46,156.36,6.0363]
[1723126855480,45.34,156.46,156.36,6.0363]
[1723126855970,27.492533,156.58,156.36,6.0363]
[1723126856169,15.9717,156.53,156.36,6.0363]
[1723126856469,31.9396,156.55,156.36,6.0363]
[1723126856782,15.9709,156.54,156.36,6.0363]
[1723126856945,6.3882,156.54,156.36,6.0363]
[1723126857152,274.97359725,156.59,156.36,7.31502087]
[1723126857477,6.3881,156.54,156.36,6.0363]
[1723126857672,44.72954794,156.59,156.36,6.0363]
[1723126857848,43.41,156.56,156.37,20.0]
[1723126858045,12.79854794,156.59,156.37,63.41]
[1723126858258,12.79854794,156.59,156.38,15.2626]
[1723126858259,28.76464794,156.59,156.38,15.2626]
[1723126858464,6.62754794,156.59,156.41,6.0949]
[1723126858667,6.3848,156.63,156.42,66.27800475]
[1723126858870,6.62609166,156.64,156.46,21.3575]
[1723126859094,6.3839,156.65,156.47,20.0]
[1723126859271,6.3835,156.66,156.47,20.0]
[1723126859471,6.3838,156.65,156.48,1.27773201]
[1723126859671,6.3838,156.65,156.47,20.0]
[1723126859878,6.3839,156.65,156.47,20.0]
[1723126860087,15.9496,156.75,156.5,22.5613]
[1723126860249,43.41,156.76,156.55,16.4936]
[1723126860250,6.3792,156.76,156.55,16.4936]
[1723126860450,6.3792,156.76,156.56,21.27694956]
[1723126860756,23.0197,156.78,156.56,20.0]
[1723126860757,6.64058657,156.77,156.56,20.0]
[1723126860959,15.9509,156.74,156.56,20.0]
[1723126861179,15.9509,156.74,156.55,16.4936]
[1723126861469,6.3833,156.66,156.55,16.4936]
[1723126861669,15.9561,156.68,156.54,6.0677]
[1723126861975,6.3857,156.6,156.54,6.0677]
[1723126862276,6.3852,156.62,156.54,6.0677]
[1723126862569,43.41,156.68,156.54,6.0677]
[1723126862570,6.3835,156.66,156.54,6.0677]
[1723126862771,6.5537,156.65,156.54,6.0677]
[1723126862946,8.292533,156.72,156.54,6.0677]
[1723126863151,0.1,156.75,156.54,8.16450224]
[1723126863374,0.1,156.75,156.55,20.0]
[1723126863866,15.9512,156.73,156.55,20.0]
[1723126864374,15.9512,156.73,156.54,6.0677]
[1723126864575,43.41,156.74,156.54,6.0677]
[1723126864576,6.3831,156.67,156.54,6.0677]
[1723126864757,15.9539,156.71,156.54,6.0677]
[1723126865090,0.17,156.7,156.54,6.0677]
[1723126865382,269.092533,156.75,156.54,6.0677]
[1723126865383,260.8,156.75,156.55,20.0]
[1723126865672,6.382,156.69,156.55,20.0]
[1723126866373,6.3823,156.69,156.54,6.0677]
[1723126866569,45.34,156.68,156.54,6.0677]
[1723126867074,6.384,156.65,156.54,6.0677]
[1723126867260,45.34,156.64,156.54,6.0677]
[1723126867468,0.17,156.64,156.54,6.0677]
[1723126867776,10.00832596,156.71,156.54,6.0677]
[1723126867952,6.3818,156.7,156.54,6.0677]
[1723126868363,10.00832596,156.71,156.54,6.0677]
[1723126868563,6.3824,156.69,156.54,6.0677]
[1723126868762,10.00832596,156.71,156.55,65.0]
[1723126868957,260.8,156.75,156.57,15.0636]
[1723126869163,15.9527,156.72,156.58,6.4901]
[1723126869356,10.00678846,156.68,156.58,6.4901]
[1723126869565,31.9991,156.75,156.58,6.4901]
[1723126869566,15.9551,156.69,156.58,6.4901]
[1723126869773,6.3843,156.64,156.58,6.4901]
[1723126869964,6.3846,156.63,156.58,6.4901]
[1723126870166,6.3856,156.61,156.52,6.4901]
[1723126870365,30.0,156.58,156.47,6.1207]
[1723126870587,0.17,156.57,156.47,6.1207]
[1723126870758,30.0,156.58,156.47,6.1207]
[1723126870960,16.4214,156.74,156.53,6.1207]
[1723126871155,6.3805,156.73,156.56,43.41]
[1723126871365,10.00583602,156.7,156.56,43.41]
[1723126872260,16.38763602,156.7,156.57,20.0]
[1723126872477,16.38763602,156.7,156.54,20.0]
[1723126872687,10.00583602,156.7,156.54,20.0]
[1723126873185,0.17,156.69,156.54,20.0]
[1723126873481,6.3832,156.66,156.53,6.1207]
[1723126873785,0.34,156.69,156.53,6.1207]
[1723126873786,6.384,156.64,156.53,6.1207]
[1723126873984,61.3111,156.63,156.48,6.4674]
[1723126874279,6.3866,156.58,156.48,6.4674]
[1723126874482,6.727,156.57,156.48,6.4674]
[1723126874662,45.0,156.56,156.39,6.4674]
[1723126874864,0.34,156.55,156.39,6.4674]
[1723126875177,6.7279,156.55,156.39,6.4674]
[1723126875380,45.0,156.54,156.39,6.4674]
[1723126875670,0.34,156.53,156.39,6.4674]
[1723126875981,45.34,156.53,156.39,6.4674]
[1723126876290,0.34,156.53,156.39,6.4674]
[1723126877061,0.34,156.53,156.4,20.0]
[1723126877587,6.386,156.6,156.42,43.41]
[1723126877876,16.1411,156.63,156.43,20.0]
[1723126878088,6.63527573,156.62,156.46,43.41]
[1723126878259,16.6185,156.69,156.5,43.41]
[1723126878460,6.63493239,156.67,156.5,43.41]
[1723126878794,6.63493239,156.67,156.51,20.0]
[1723126879086,6.3841,156.64,156.46,43.41]
[1723126879291,6.63493239,156.67,156.47,65.0]
[1723126879481,6.63493239,156.67,156.5,43.41]
[1723126879780,6.3832,156.66,156.47,20.0]
[1723126879980,6.63765591,156.67,156.5,43.41]
[1723126880189,16.6185,156.69,156.52,6.3767]
[1723126880365,23.0006,156.69,156.53,21.27743756]
[1723126880567,16.6185,156.69,156.52,6.3767]
[1723126880877,6.3828,156.67,156.52,6.3767]